bitfinex-derivatives/quotes_SOLF0:USTF0_20241024
["timestamp","ask_amount","ask_price","bid_price","bid_amount"]
[1729800602765,7.82069123,176.9,176.85,7.1684]
[1729800602966,2.8278,176.9,176.87,10.64869123]
[1729800603364,7.82069123,176.93,176.87,10.64869123]
[1729800604170,2.8275,176.92,176.87,10.64869123]
[1729800604370,7.82069123,176.93,176.87,10.64869123]
[1729800604667,7.82069123,176.91,176.87,10.64869123]
[1729800605369,2.8277,176.9,176.87,10.64869123]
[1729800605966,2.8277,176.9,176.87,2.828]
[1729800608172,7.82069123,176.89,176.85,7.82069123]
[1729800608471,2.8282,176.87,176.86,4.34]
[1729800608971,7.82069123,176.88,176.8,1.2405]
[1729800609175,2.8287,176.84,176.81,4.34]
[1729800609374,7.82069123,176.85,176.81,4.34]
[1729800609676,7.82069123,176.87,176.82,10.64959123]
[1729800610076,7.82069123,176.87,176.83,4.34]
[1729800610277,2.8285,176.85,176.83,4.34]
[1729800612277,2.8285,176.85,176.82,10.64959123]
[1729800612477,2.8285,176.85,176.83,4.34]
[1729800618375,7.82069123,176.85,176.84,4.34]
[1729800618573,10.64919123,176.85,176.84,4.34]
[1729800620086,10.64919123,176.85,176.79,63.8893]
[1729800620087,2.8291,176.82,176.79,63.8893]
[1729800620281,7.82069123,176.83,176.8,4.34]
[1729800620472,7.82069123,176.81,176.79,61.06]
[1729800620678,7.82069123,176.81,176.74,1.1794]
[1729800620878,7.82069123,176.81,176.76,7.82069123]
[1729800621179,10.64989123,176.81,176.78,2.8296]
[1729800621384,10.64989123,176.81,176.79,4.34]
[1729800621775,7.82069123,176.81,176.79,4.34]
[1729800621976,2.829,176.82,176.79,7.1693]
[1729800622281,7.82069123,176.84,176.79,4.34]
[1729800623278,2.829,176.82,176.79,7.1694]
[1729800623487,2.829,176.82,176.8,4.34]
[1729800625881,7.82069123,176.83,176.8,4.34]
[1729800626084,2.8291,176.81,176.8,4.34]
[1729800628190,7.82069123,176.82,176.73,2.3891]
[1729800628387,10.65039123,176.78,176.74,7.1701]
[1729800629087,2.8298,176.77,176.74,4.34]
[1729800629286,2.8298,176.77,176.75,2.8301]
[1729800629691,4.07434318,176.85,176.74,12.16069123]
[1729800629891,7.82069123,176.83,176.77,7.82069123]
[1729800630088,7.82069123,176.83,176.78,4.34]
[1729800630288,2.8292,176.81,176.78,7.1695]
[1729800632589,1.1745,176.9,176.83,2.8287]
[1729800632781,1.1745,176.9,176.74,1.1911]
[1729800632782,7.82069123,176.87,176.82,12.16069123]
[1729800633183,2.8285,176.86,176.83,2.8288]
[1729800633392,2.8285,176.86,176.82,12.16069123]
[1729800633991,2.8284,176.86,176.82,14.98949123]
[1729800634293,2.8284,176.86,176.82,12.16069123]
[1729800634499,2.8284,176.86,176.83,2.8287]
[1729800634797,2.8284,176.86,176.82,12.16069123]
[1729800635096,10.64909123,176.86,176.82,4.34]
[1729800635297,10.64909123,176.86,176.82,7.1689]
[1729800635504,2.8284,176.86,176.82,7.1689]
[1729800635710,10.64909123,176.86,176.82,7.1689]
[1729800635915,10.64909123,176.86,176.82,14.98959123]
[1729800636817,2.8285,176.85,176.82,14.98959123]
[1729800643706,2.8288,176.84,176.82,12.16069123]
[1729800644400,2.8288,176.84,176.82,14.98959123]
[1729800645104,7.82069123,176.86,176.82,14.98959123]
[1729800645402,7.82069123,176.88,176.83,7.82069123]
[1729800645608,7.82069123,176.88,176.82,12.16069123]
[1729800646004,2.8286,176.85,176.82,14.98959123]
[1729800646703,1.1752,176.91,176.84,7.82069123]
[1729800646910,1.1752,176.91,176.85,7.82069123]
[1729800647102,7.82069123,176.9,176.86,4.32]
[1729800647299,2.8281,176.88,176.86,4.32]
[1729800647499,7.82069123,176.89,176.86,4.32]
[1729800648306,2.8282,176.87,176.86,4.32]
[1729800650703,10.64889123,176.87,176.86,3.1949]
[1729800651108,2.8288,176.84,176.83,4.32]
[1729800653110,2.8288,176.83,176.82,4.32]
[1729800657304,7.82069123,176.84,176.79,10.65009123]
[1729800657510,2.829,176.82,176.8,4.32]
[1729800657910,2.829,176.82,176.81,4.32]
[1729800664616,2.8289,176.83,176.81,4.32]
[1729800665623,2.829,176.82,176.81,4.32]
[1729800679038,7.82069123,176.84,176.81,4.32]
[1729800679238,2.829,176.82,176.81,4.32]
[1729800681235,1.1687,176.9,176.81,4.32]
[1729800681429,6.8306,176.91,176.81,4.32]
[1729800681430,7.82069123,176.88,176.81,12.14069123]
[1729800681630,2.8283,176.87,176.84,7.82069123]
[1729800681834,2.8283,176.87,176.85,4.32]
[1729800682230,7.82069123,176.89,176.85,4.32]
[1729800682435,2.8283,176.86,176.85,4.32]
[1729800688643,7.82069123,176.9,176.85,4.32]
[1729800688839,64.83363594,177.22,176.85,4.32]
[1729800688840,601.12014525,177.17,176.86,7.82069123]
[1729800689041,7.82069123,176.91,176.86,7.82069123]
[1729800689641,2.828,176.89,176.86,10.64889123]
[1729800692743,7.82069123,176.92,176.86,7.82069123]
[1729800693949,172.71631053,176.96,176.86,7.82069123]
[1729800694246,2.8278,176.9,176.87,2.8281]
[1729800696449,2.8276,176.91,176.88,2.8279]
[1729800696748,2.8276,176.91,176.89,4.32]
[1729800697640,2.8277,176.9,176.89,4.32]
[1729800702859,7.82069123,176.91,176.89,4.32]
[1729800703053,2.8277,176.9,176.89,4.32]
[1729800713674,2.8277,176.9,176.88,7.82069123]
[1729800713876,2.8277,176.9,176.89,4.32]
[1729800714474,2.8277,176.9,176.8,1.1594]
[1729800714475,7.82069123,176.9,176.83,10.64939123]
[1729800714676,7.82069123,176.88,176.84,4.32]
[1729800715177,2.8283,176.87,176.84,4.32]
[1729800715776,2.8283,176.86,176.84,4.32]
[1729800720585,2.8285,176.85,176.84,4.32]
[1729800721182,2.8285,176.85,176.83,7.82069123]
[1729800721487,2.8285,176.85,176.84,4.32]
[1729800726890,2.8285,176.85,176.83,10.64949123]
[1729800727186,2.8285,176.85,176.8,1.1594]
[1729800727187,2.8285,176.85,176.84,4.32]
[1729800727784,2.8285,176.85,176.61,30.68546465]
[1729800727785,7.82069123,176.86,176.77,7.82069123]
[1729800727983,7.82069123,176.83,176.78,4.32]
[1729800728583,2.8292,176.81,176.79,2.8294]
[1729800729188,1.1704,176.88,176.8,7.82069123]
[1729800729388,7.82069123,176.87,176.82,7.82069123]
[1729800729587,7.82069123,176.85,176.83,4.32]
[1729800729789,7.82069123,176.85,176.8,7.82069123]
[1729800729984,2.8289,176.83,176.81,4.32]
[1729800730183,2.8289,176.83,176.82,4.32]
[1729800733691,2.8287,176.84,176.82,4.32]
[1729800735592,1.1704,176.88,176.82,4.32]
[1729800735793,7.82069123,176.87,176.82,4.32]
[1729800738289,2.8287,176.84,176.82,4.32]
[1729800738793,2.8287,176.84,176.83,4.3]
[1729800738990,1.1704,176.88,176.83,4.3]
[1729800739192,7.82069123,176.87,176.84,4.3]
[1729800739592,2.8283,176.86,176.84,4.3]
[1729800739995,7.82069123,176.87,176.84,4.3]
[1729800741193,2.8283,176.86,176.84,4.3]
[1729800741391,2.436,176.91,176.84,4.3]
[1729800741697,7.82069123,176.89,176.84,12.12069123]
[1729800741893,7.82069123,176.9,176.84,12.12069123]
[1729800743394,7.82069123,176.9,176.85,2.8284]
[1729800743395,2.828,176.88,176.85,2.8284]
[1729800744595,2.8283,176.86,176.83,2.8287]
[1729800744895,2.8283,176.86,176.84,4.3]
[1729800747596,2.8285,176.85,176.84,4.3]
[1729800747992,10.64919123,176.85,176.84,4.3]
[1729800749294,2.8286,176.84,176.83,4.3]
[1729800749496,10.64929123,176.84,176.83,4.3]
[1729800751000,7.82069123,176.84,176.81,4.3]
[1729800751197,7.82069123,176.82,176.81,4.3]
[1729800751498,2.8291,176.81,176.8,4.3]
[1729800751697,10.64979123,176.81,176.8,4.3]
[1729800753294,10.64979123,176.81,176.79,4.3]
[1729800754894,7.82069123,176.81,176.79,4.3]
[1729800756593,2.8293,176.8,176.79,4.3]
[1729800757705,7.82069123,176.81,176.79,4.32]
[1729800757905,7.82069123,176.81,176.72,7.82069123]
[1729800758096,7.82069123,176.81,176.74,2.8302]
[1729800758297,10.65049123,176.77,176.74,2.8302]
[1729800758608,7.82069123,176.76,176.75,4.32]
[1729800758804,7.82069123,176.76,176.7,8.98749123]
[1729800759003,7.82069123,176.76,176.71,4.32]
[1729800759312,2.8301,176.75,176.71,4.32]
[1729800759612,7.82069123,176.76,176.71,2.8306]
[1729800759801,2.8303,176.74,176.72,4.32]
[1729800760303,2.8303,176.74,176.73,4.32]
[1729800762206,2.8302,176.75,176.73,4.32]
[1729800762508,7.82069123,176.77,176.73,4.32]
[1729800762710,2.8295,176.79,176.76,2.8299]
[1729800762905,2.8295,176.79,176.77,4.32]
[1729800763111,1.1829,176.84,176.77,4.32]
[1729800763312,2.8293,176.8,176.77,7.1497]
[1729800763910,10.64989123,176.81,176.77,7.1497]
[1729800764102,7.82069123,176.81,176.77,7.1497]
[1729800764714,10.64959123,176.83,176.79,2.8294]
[1729800764914,7.82069123,176.83,176.79,2.8294]
[1729800765716,2.8291,176.82,176.79,2.8294]
[1729800765911,1.2606,176.85,176.79,2.8294]
[1729800766106,7.82069123,176.84,176.8,2.8292]
[1729800766313,7.82069123,176.84,176.81,4.32]
[1729800767221,2.8288,176.83,176.81,4.32]
[1729800767919,1.2849,176.86,176.81,4.32]
[1729800768122,7.82069123,176.85,176.81,4.32]
[1729800768421,7.82069123,176.85,176.8,7.82069123]
[1729800768718,7.82069123,176.85,176.81,4.3]
[1729800769316,2.8287,176.84,176.81,7.1291]
[1729800771319,2.8287,176.84,176.81,4.3]
[1729800775225,7.82069123,176.85,176.81,4.3]
[1729800775427,2.8287,176.84,176.81,4.3]
[1729800784630,2.8288,176.83,176.81,4.3]
[1729800792038,2.8287,176.84,176.81,4.3]
[1729800794538,2.8287,176.84,176.81,7.1291]
[1729800795941,2.8287,176.84,176.82,4.3]
[1729800797133,2.8284,176.86,176.83,7.82069123]
[1729800797633,1.2167,176.9,176.83,7.82069123]
[1729800797831,1.2252,176.94,176.86,7.82069123]
[1729800797832,7.82069123,176.91,176.86,7.82069123]
[1729800798031,7.82069123,176.91,176.86,4.3]
[1729800798428,7.82069123,176.9,176.86,4.3]
[1729800799044,2.8279,176.89,176.86,4.3]
[1729800799540,7.82069123,176.9,176.86,4.3]
[1729800800242,2.828,176.88,176.86,4.3]
[1729800807353,2.8279,176.89,176.86,4.3]
[1729800813859,7.82069123,176.9,176.86,4.3]
[1729800814057,7.82069123,176.89,176.86,4.3]
[1729800814261,7.82069123,176.87,176.85,4.3]
[1729800814555,2.8284,176.86,176.85,4.3]
[1729800817254,2.8287,176.84,176.78,61.08]
[1729800817455,10.64939123,176.84,176.79,12.12069123]
[1729800819258,10.64939123,176.84,176.81,2.8291]
[1729800819761,10.64939123,176.84,176.82,4.3]
[1729800819956,2.8287,176.84,176.82,4.3]
[1729800820157,10.64939123,176.84,176.82,4.3]
[1729800821866,10.64929123,176.84,176.82,4.3]
[1729800822160,7.82069123,176.84,176.82,4.3]
[1729800823364,10.64939123,176.84,176.82,4.3]
[1729800828968,5.6548,176.93,176.82,12.12069123]
[1729800829270,5.6548,176.93,176.84,7.82069123]
[1729800829271,7.82069123,176.89,176.84,7.82069123]
[1729800829662,7.82069123,176.9,176.84,7.82069123]
[1729800830060,2.8281,176.88,176.85,2.8284]
[1729800830265,2.8281,176.88,176.86,4.3]
[1729800831165,10.64849123,176.9,176.86,7.1282]
[1729800831768,2.8278,176.9,176.86,12.12069123]
[1729800831968,2.8278,176.9,176.87,2.8281]
[1729800833471,2.8276,176.91,176.87,10.64879123]
[1729800833871,7.82069123,176.92,176.87,10.64879123]
[1729800834969,7.82069123,176.9,176.87,2.8281]
[1729800835371,10.64839123,176.9,176.87,2.8281]
[1729800836871,10.64839123,176.9,176.86,4.3]
[1729800837066,10.64839123,176.9,176.86,7.1282]
[1729800837675,2.8277,176.9,176.86,7.1282]
[1729800837877,10.64839123,176.9,176.86,7.1282]
[1729800839175,10.64839123,176.9,176.87,2.8281]
[1729800840874,2.8277,176.9,176.87,10.64879123]
[1729800846370,2.8277,176.9,176.87,7.82069123]
[1729800847784,2.8277,176.9,176.86,7.1282]
[1729800847985,2.8277,176.9,176.86,14.94889123]
[1729800851382,7.82069123,176.9,176.86,4.3]
[1729800851583,7.82069123,176.87,176.86,4.3]
[1729800851779,7.82069123,176.88,176.86,4.3]
[1729800852486,7.82069123,176.9,176.86,4.3]
[1729800853277,2.828,176.89,176.86,4.3]
[1729800863794,10.64869123,176.89,176.86,4.3]
[1729800879214,1.2252,176.94,176.86,12.12069123]
[1729800879415,7.82069123,176.91,176.86,12.12069123]
[1729800880016,7.82069123,176.91,176.86,4.3]
[1729800880220,2.8277,176.9,176.86,4.3]
[1729800881317,10.64829123,176.91,176.87,2.8281]
[1729800884926,2.8277,176.9,176.87,2.8281]
[1729800886327,10.64829123,176.91,176.87,2.8281]
[1729800886624,10.64829123,176.91,176.88,4.28]
[1729800896229,7.82069123,176.91,176.88,4.28]
[1729800896434,2.8278,176.9,176.88,4.28]
[1729800896639,7.82069123,176.91,176.88,4.28]
[1729800898336,2.8278,176.89,176.88,4.28]
[1729800902937,7.82069123,176.92,176.88,4.28]
[1729800903236,2.8277,176.9,176.88,4.28]
[1729800903642,2.8274,176.92,176.88,7.108]
[1729800903942,2.8274,176.92,176.88,12.10069123]
[1729800904139,164.68801032,176.95,176.9,7.82069123]
[1729800904339,2.8272,176.94,176.9,10.64829123]
[1729800905644,164.68801032,176.95,176.9,7.82069123]
[1729800905645,2.8272,176.93,176.9,7.82069123]
[1729800906744,2.827,176.94,176.9,10.64829123]
[1729800907238,164.68801032,176.95,176.9,7.82069123]
[1729800907435,4.28,177.03,176.93,7.82069123]
[1729800907743,7.82069123,176.97,176.94,4.28]
[1729800908335,2.8268,176.96,176.94,4.28]
[1729800908533,7.82069123,176.97,176.94,4.28]
[1729800908931,2.8267,176.96,176.94,4.28]
[1729800909442,7.82069123,176.96,176.94,4.28]
[1729800909646,2.8269,176.95,176.94,4.28]
[1729800912040,7.82069123,176.96,176.91,4.28]
[1729800912343,2.79478278,177.0,176.86,7.82069123]
[1729800912344,7.82069123,176.92,176.86,7.82069123]
[1729800912549,10.64819123,176.92,176.89,4.28]
[1729800913436,7.82069123,176.92,176.89,4.28]
[1729800913635,2.8275,176.91,176.89,4.28]
[1729800914642,10.64839123,176.9,176.89,4.28]
[1729800914842,10.64839123,176.9,176.88,4.28]
[1729800915039,7.82069123,176.9,176.88,4.28]
[1729800915240,4.28,176.99,176.76,14.32552198]
[1729800915241,7.82069123,176.89,176.83,7.82069123]
[1729800915448,7.82069123,176.87,176.84,4.28]
[1729800915647,10.64899123,176.87,176.85,4.28]
[1729800916344,7.82069123,176.86,176.76,14.32552198]
[1729800916541,7.82069123,176.83,176.77,7.82069123]
[1729800916745,2.8291,176.82,176.8,4.28]
[1729800917046,171.82794657,176.91,176.8,4.28]
[1729800917248,7.82069123,176.84,176.8,4.28]
[1729800917650,2.8289,176.83,176.8,4.28]
[1729800918239,7.82069123,176.84,176.81,4.28]
[1729800918446,2.8293,176.81,176.8,4.28]
[1729800918641,10.64999123,176.81,176.8,4.28]
[1729800921354,10.64999123,176.81,176.75,7.82069123]
[1729800921355,7.82069123,176.81,176.75,7.82069123]
[1729800921554,2.8293,176.8,176.76,7.1099]
[1729800925749,7.82069123,176.81,176.76,7.1099]
[1729800926054,7.82069123,176.77,176.75,4.28]
[1729800926256,7.82069123,176.78,176.75,4.28]
[1729800926555,10.65039123,176.78,176.75,4.28]
[1729800927057,7.82069123,176.78,176.75,4.28]
[1729800928255,2.8298,176.77,176.75,4.28]
[1729800932964,10.65049123,176.77,176.75,4.28]
[1729800939868,10.65049123,176.77,176.74,2.8302]
[1729800940070,10.65049123,176.77,176.75,4.28]
[1729800942756,10.65049123,176.77,176.74,2.8302]
[1729800942959,3.7212,176.84,176.71,61.08]
[1729800942960,2.83,176.76,176.75,4.28]
[1729800943160,10.65069123,176.76,176.75,4.28]
[1729800943565,10.65069123,176.76,176.73,2.8304]
[1729800943758,2.8304,176.74,176.73,4.28]
[1729800944070,10.65109123,176.74,176.73,4.28]
[1729800944574,10.65109123,176.74,176.72,4.28]
[1729800945958,2.8304,176.73,176.72,4.28]
[1729800946163,2.80936185,176.82,176.72,4.28]
[1729800946362,3.7212,176.84,176.72,4.28]
[1729800946363,7.82069123,176.77,176.72,4.28]
[1729800946868,7.82069123,176.77,176.72,12.10069123]
[1729800947969,7.82069123,176.77,176.74,2.8302]
[1729800948661,10.65049123,176.77,176.74,2.8302]
[1729800948969,10.65049123,176.77,176.73,2.8303]
[1729800949170,10.65059123,176.76,176.73,2.8303]
[1729800949371,7.82069123,176.76,176.73,2.8303]
[1729800954572,10.65069123,176.76,176.73,2.8303]
[1729800957371,7.82069123,176.76,176.74,2.8301]
[1729800958171,7.82069123,176.76,176.62,8.47369448]
[1729800958377,7.82069123,176.73,176.71,2.8307]
[1729800958573,7.82069123,176.74,176.7,4.28]
[1729800958871,7.82069123,176.74,176.73,2.8304]
[1729800959674,7.82069123,176.75,176.73,2.8304]
[1729800960473,2.80939675,176.82,176.7,4.28]
[1729800960678,3.7212,176.84,176.73,7.82069123]
[1729800960878,7.82069123,176.78,176.74,4.28]
[1729800961065,7.82069123,176.79,176.77,2.8298]
[1729800961272,7.82069123,176.79,176.78,4.28]
[1729800961672,3.7212,176.84,176.78,4.28]
[1729800961867,7.82069123,176.8,176.78,4.28]
[1729800962376,7.82069123,176.81,176.78,4.28]
[1729800962574,7.82069123,176.82,176.78,4.28]
[1729800962977,10.64969123,176.82,176.78,7.1095]
[1729800964375,1.2674,176.89,176.78,4.28]
[1729800964676,7.82069123,176.86,176.8,7.82069123]
[1729800964873,7.82069123,176.86,176.82,7.82069123]
[1729800965076,7.82069123,176.86,176.83,7.1087]
[1729800966175,7.82069123,176.86,176.83,4.28]
[1729800966982,7.82069123,176.86,176.83,7.1087]
[1729800971888,2.8282,176.87,176.83,7.1087]
[1729800972079,2.828,176.89,176.83,12.10069123]
[1729800972285,10.64869123,176.89,176.83,12.10069123]
[1729800972488,7.82069123,176.89,176.84,7.82069123]
[1729800972686,7.82069123,176.89,176.85,2.8284]
[1729800972687,10.64859123,176.89,176.85,2.8284]
[1729800976688,261.97,177.14,176.88,7.82069123]
[1729800976890,1.176,177.08,176.95,7.82069123]
[1729800977083,1.2794,177.07,176.96,12.08069123]
[1729800977279,7.82069123,177.02,176.96,12.08069123]
[1729800977488,1.2794,177.07,176.98,7.82069123]
[1729800977684,7.82069123,177.03,176.98,7.82069123]
[1729800979392,2.8258,177.02,176.98,7.82069123]
[1729800979894,7.82069123,176.99,176.94,2.827]
[1729800980090,7.82069123,176.99,176.95,4.26]
[1729800981895,7.82069123,176.99,176.95,7.0867]
[1729800982995,10.64699123,176.99,176.95,7.0867]
[1729800984395,2.8264,176.98,176.95,7.0867]
[1729800985692,10.64699123,176.99,176.95,7.0867]
[1729800985895,7.82069123,177.0,176.97,2.8265]
[1729800986093,7.82069123,177.02,176.97,2.8265]
[1729800987195,2.826,177.01,176.97,2.8265]
[1729800991790,2.826,177.01,176.97,10.64719123]
[1729800994999,7.82069123,177.02,176.97,7.82069123]
[1729800995201,10.64649123,177.02,176.98,2.8263]
[1729800995499,10.64649123,177.02,176.99,4.26]
[1729801002500,2.8258,177.02,176.99,4.26]
[1729801009397,7.82069123,177.04,176.99,4.26]
[1729801009612,2.4554,177.07,177.0,7.82069123]
[1729801009901,7.82069123,177.06,177.01,7.82069123]
[1729801010107,10.64569123,177.07,177.03,10.64629123]
[1729801010299,10.64569123,177.07,177.04,4.26]
[1729801010898,6.55228979,177.12,177.04,4.26]
[1729801010899,2.8245,177.1,177.04,7.0853]
[1729801011098,7.82069123,177.09,177.04,4.26]
[1729801011608,2.825,177.07,177.04,4.26]
[1729801011903,7.82069123,177.09,177.04,4.26]
[1729801013308,2.8248,177.08,177.04,7.0854]
[1729801015208,7.82069123,177.09,177.04,4.26]
[1729801015411,3.7425,177.12,177.04,4.26]
[1729801015412,10.64579123,177.07,177.04,4.26]
[1729801016407,7.82069123,177.07,177.04,7.0854]
[1729801019911,2.8248,177.08,177.04,7.0854]
[1729801020305,2.8247,177.09,177.05,2.8253]
[1729801020702,10.64539123,177.09,177.05,2.8253]
[1729801024620,164.52974719,177.15,177.06,7.82069123]
[1729801024808,164.52974719,177.15,177.04,4.26]
[1729801024809,2.8243,177.11,177.09,7.82069123]
[1729801025009,2.8243,177.11,177.1,4.26]
[1729801026213,2.8241,177.13,177.1,4.26]
[1729801029220,164.52974719,177.15,177.12,7.82069123]
[1729801030312,164.52974719,177.15,177.13,2.8239]
[1729801030513,164.52974719,177.15,177.14,4.26]
[1729801037613,566.0,177.4,177.14,12.08069123]
[1729801037817,7.82069123,177.21,177.15,7.82069123]
[1729801038325,2.8231,177.19,177.15,10.64429123]
[1729801039328,10.64419123,177.17,177.16,4.26]
[1729801045933,2.8235,177.17,177.16,4.26]
[1729801046234,2.8235,177.17,177.16,4.24]
[1729801047031,7.82069123,177.19,177.16,4.24]
[1729801048235,10.64379123,177.19,177.16,4.24]
[1729801049533,2.8233,177.18,177.16,4.24]
[1729801049735,7.82069123,177.19,177.16,4.24]
[1729801050135,2.8232,177.18,177.16,4.24]
[1729801051334,7.82069123,177.19,177.16,4.24]
[1729801051535,10.64379123,177.19,177.16,4.24]
[1729801051736,2.8231,177.19,177.16,4.24]
[1729801052734,2.8231,177.19,177.16,7.0635]
[1729801053231,2.8229,177.2,177.17,2.8233]
[1729801055637,2.8229,177.2,177.16,12.06069123]
[1729801055638,2.8229,177.2,177.16,7.0635]
[1729801056836,2.8229,177.2,177.16,2.8235]
[1729801057042,2.8229,177.2,177.17,4.24]
[1729801059136,2.8228,177.21,177.17,7.0633]
[1729801060035,7.82069123,177.22,177.17,2.8233]
[1729801060239,10.64359123,177.2,177.18,4.24]
[1729801060944,7.82069123,177.2,177.18,4.24]
[1729801061736,2.8228,177.21,177.18,4.24]
[1729801063538,10.64349123,177.21,177.18,4.24]
[1729801065635,2.8228,177.21,177.18,4.24]
[1729801066437,1.2196,177.25,177.17,2.8233]
[1729801066438,2.8231,177.19,177.17,4.24]
[1729801066643,7.82069123,177.18,177.17,4.24]
[1729801067935,7.82069123,177.18,177.15,2.8237]
[1729801068244,7.82069123,177.18,177.16,4.24]
[1729801071151,10.64389123,177.18,177.16,4.24]
[1729801072549,10.64389123,177.18,177.17,4.24]
[1729801076046,7.82069123,177.18,177.17,4.24]
[1729801079057,2.8235,177.16,177.12,2.8241]
[1729801079358,2.8235,177.16,177.06,3.5803]
[1729801079359,7.82069123,177.16,177.13,4.24]
[1729801079551,7.82069123,177.16,177.14,4.24]
[1729801079948,7.82069123,177.16,177.1,7.82069123]
[1729801079949,7.82069123,177.16,177.13,2.8239]
[1729801080249,7.82069123,177.16,177.14,4.24]
[1729801084253,10.64409123,177.17,177.14,7.0638]
[1729801085160,2.8235,177.16,177.14,4.24]
[1729801086056,1.2133,177.22,177.06,3.5803]
[1729801086057,7.82069123,177.15,177.06,3.5803]
[1729801086259,7.82069123,177.11,177.06,11.40099123]
[1729801086453,7.82069123,177.11,177.07,4.24]
[1729801087257,7.82069123,177.12,177.09,2.8245]
[1729801088552,10.64489123,177.12,177.09,2.8245]
[1729801090459,7.82069123,177.1,177.06,1.2225]
[1729801090657,7.82069123,177.08,177.07,4.24]
[1729801096062,7.82069123,177.08,177.01,1.2682]
[1729801096269,2.89121192,177.14,177.01,1.2682]
[1729801096270,2.8254,177.05,177.02,7.0657]
[1729801096464,7.82069123,177.03,176.96,61.0]
[1729801096660,10.64629123,177.03,176.99,2.8261]
[1729801096856,10.64629123,177.03,176.97,4.24]
[1729801097363,1.24,177.12,177.01,7.82069123]
[1729801097566,1.24,177.12,177.02,4.24]
[1729801097567,7.82069123,177.06,177.02,4.24]
[1729801097864,7.82069123,177.06,177.03,2.8255]
[1729801100367,10.64579123,177.06,177.03,2.8255]
[1729801102266,7.82069123,177.04,177.03,2.8255]
[1729801111692,10.64609123,177.04,176.96,61.0]
[1729801111892,10.64609123,177.04,176.97,4.24]
[1729801111893,7.82069123,177.01,176.97,4.24]
[1729801112484,7.82069123,177.01,177.0,2.8259]
[1729801117385,7.82069123,177.01,176.97,4.24]
[1729801117596,7.82069123,177.01,176.99,2.8262]
[1729801117796,7.82069123,177.01,176.97,4.24]
[1729801118190,7.82069123,177.01,176.98,4.24]
[1729801118384,7.82069123,177.01,176.99,2.8262]
[1729801119489,7.82069123,177.01,176.98,2.8264]
[1729801119490,7.82069123,177.0,176.98,2.8264]
[1729801119691,7.82069123,176.99,176.98,2.8264]
[1729801119891,7.82069123,176.99,176.96,61.0]
[1729801120093,2.8261,177.0,176.97,7.0665]
[1729801120301,7.82069123,176.98,176.97,7.0665]
[1729801121893,2.826,177.01,176.98,2.8264]
[1729801122101,7.82069123,176.99,176.98,2.8264]
[1729801122695,2.826,177.01,176.98,2.8264]
[1729801122900,7.82069123,176.99,176.98,2.8264]
[1729801135703,2.4312,177.08,176.97,4.24]
[1729801135907,7.82069123,177.02,177.01,2.8259]
[1729801136107,7.82069123,177.02,177.01,7.0659]
[1729801139613,7.82069123,177.02,177.01,4.24]
[1729801141117,10.64649123,177.02,177.01,4.24]
[1729801141509,7.82069123,177.02,177.01,4.24]
[1729801143310,7.82069123,177.02,176.94,2.3715]
[1729801143513,2.4312,177.08,176.95,4.24]
[1729801143713,7.82069123,176.98,176.95,4.24]
[1729801145513,7.82069123,176.98,176.97,2.8266]
[1729801146216,2.8254,177.05,176.99,2.8261]
[1729801146417,7.82069123,177.01,177.0,4.24]
[1729801149809,10.64659123,177.01,177.0,4.24]
[1729801150607,7.82069123,176.98,176.97,4.24]
[1729801152018,10.64709123,176.98,176.97,4.24]
[1729801152510,10.64709123,176.98,176.95,2.8267]
[1729801152707,7.82069123,176.96,176.95,2.8267]
[1729801152911,7.82069123,176.96,176.95,7.0667]
[1729801153117,7.82069123,176.96,176.93,2.8271]
[1729801153319,7.82069123,176.96,176.94,4.24]